[Event "Masters Tournament (MTO)"]
[Site "Biel, Switzerland"]
[Date "2026.07.23"]
[Round "10.20"]
[White "Kudryavtsev, Eugene"]
[Black "Iafelice, Vincenzo"]
[Result "1-0"]
[TimeControl "100+30+30sec/move"]
[WhiteTitle "-"]
[BlackTitle "-"]
[WhiteFideId "1315374"]
[BlackFideId "810541"]
[WhiteElo "2146"]
[BlackElo "2086"]

1. d4 {[%clk 01:40:53]} {[%emt 00:00:07]} Nf6 {[%clk 01:40:52]} {[%emt
00:00:08]} 2. c4 {[%clk 01:41:16]} {[%emt 00:00:07]} e6 {[%clk 01:41:17]}
{[%emt 00:00:07]} 3. Nc3 {[%clk 01:41:39]} {[%emt 00:00:05]} d5 {[%clk
01:41:39]} {[%emt 00:00:08]} 4. cxd5 {[%clk 01:41:51]} {[%emt 00:00:18]} exd5
{[%clk 01:42:03]} {[%emt 00:00:05]} 5. Nf3 {[%clk 01:42:13]} {[%emt 00:00:08]}
c6 {[%clk 01:36:46]} {[%emt 00:05:48]} 6. Qc2 {[%clk 01:42:02]} {[%emt
00:00:41]} Be7 {[%clk 01:36:20]} {[%emt 00:00:56]} 7. Bf4 {[%clk 01:42:12]}
{[%emt 00:00:20]} O-O {[%clk 01:36:23]} {[%emt 00:00:26]} 8. e3 {[%clk
01:41:41]} {[%emt 00:01:02]} Re8 {[%clk 01:35:43]} {[%emt 00:01:10]} 9. Bd3
{[%clk 01:40:21]} {[%emt 00:01:49]} Nbd7 {[%clk 01:35:18]} {[%emt 00:00:56]} 10.
h3 {[%clk 01:31:00]} {[%emt 00:09:51]} Nf8 {[%emt 00:03:12]} 11. O-O-O {[%clk
01:17:11]} {[%emt 00:14:16]} Be6 {[%clk 01:21:43]} {[%emt 00:11:26]} 12. Ng5
{[%clk 01:12:53]} {[%emt 00:04:47]} Bd7 {[%clk 00:50:52]} {[%emt 00:31:21]} 13.
Be5 {[%clk 01:06:45]} {[%emt 00:06:38]} h6 {[%clk 00:41:14]} {[%emt 00:10:08]}
14. Nf3 {[%clk 01:06:20]} {[%emt 00:00:56]} b5 {[%clk 00:39:01]} {[%emt
00:02:43]} 15. g4 {[%clk 00:45:41]} {[%emt 00:21:09]} b4 {[%clk 00:36:45]}
{[%emt 00:02:46]} 16. Na4 {[%clk 00:37:17]} {[%emt 00:08:54]} Qa5 {[%clk
00:25:32]} {[%emt 00:11:43]} 17. Kb1 {[%clk 00:34:55]} {[%emt 00:02:51]} Ne4
{[%clk 00:24:45]} {[%emt 00:01:18]} 18. Rc1 {[%clk 00:23:04]} {[%emt 00:12:21]}
Rac8 {[%clk 00:11:34]} {[%emt 00:13:41]} 19. Nc5 {[%clk 00:19:54]} {[%emt
00:03:40]} Nxc5 {[%clk 00:11:52]} {[%emt 00:00:12]} 20. dxc5 {[%clk 00:20:18]}
{[%emt 00:00:06]} Ne6 {[%clk 00:12:11]} {[%emt 00:00:11]} 21. g5 {[%clk
00:13:12]} {[%emt 00:07:36]} Nxg5 {[%clk 00:06:55]} {[%emt 00:05:45]} 22. Nxg5
{[%clk 00:13:25]} {[%emt 00:00:18]} hxg5 {[%clk 00:07:23]} {[%emt 00:00:02]} 23.
f4 {[%clk 00:05:22]} {[%emt 00:08:33]} Qd8 {[%clk 00:05:41]} {[%emt 00:02:11]}
24. Qe2 {[%clk 00:03:19]} {[%emt 00:02:34]} Bf6 {[%clk 00:04:18]} {[%emt
00:01:53]} 25. Bd6 {[%clk 00:03:29]} {[%emt 00:00:20]} g6 {[%clk 00:04:05]}
{[%emt 00:00:42]} 26. Rcg1 {[%clk 00:03:10]} {[%emt 00:00:50]} Kg7 {[%clk
00:03:33]} {[%emt 00:01:02]} 27. h4 {[%clk 00:03:13]} {[%emt 00:00:28]} g4
{[%clk 00:03:06]} {[%emt 00:00:56]} 28. h5 {[%clk 00:02:08]} {[%emt 00:01:35]}
Bf5 {[%clk 00:02:29]} {[%emt 00:01:07]} 29. hxg6 {[%clk 00:02:03]} {[%emt
00:00:35]} fxg6 {[%clk 00:02:53]} {[%emt 00:00:06]} 30. Bxf5 {[%clk 00:02:15]}
{[%emt 00:00:18]} gxf5 {[%clk 00:03:04]} {[%emt 00:00:18]} 31. Rxg4+ {[%clk
00:02:23]} {[%emt 00:00:23]} Kf7 {[%clk 00:01:41]} {[%emt 00:01:53]} 32. Rh7+
{[%clk 00:02:41]} {[%emt 00:00:12]} Ke6 {[%clk 00:02:06]} {[%emt 00:00:05]} 33.
e4 {[%clk 00:02:10]} {[%emt 00:01:02]} Rh8 {[%clk 00:01:50]} {[%emt 00:00:45]}
34. exf5+ {[%clk 00:01:30]} {[%emt 00:01:10]} Kxf5 {[%clk 00:02:18]} {[%emt
00:00:03]} 35. Qd3+ {[%clk 00:01:30]} {[%emt 00:00:29]} Kxg4 {[%clk 00:02:35]}
{[%emt 00:00:13]} 36. Qh3# {[%clk 00:01:53]} {[%emt 00:00:05]} 1-0

[Event "Masters Tournament (MTO)"]
[Site "Biel, Switzerland"]
[Date "2026.07.23"]
[Round "10.21"]
[White "Monteverde, Jonathan"]
[Black "Fogo Esquivel, Levi Kalani Alexander"]
[Result "1/2-1/2"]
[TimeControl "100+30+30sec/move"]
[WhiteTitle "-"]
[BlackTitle "-"]
[WhiteFideId "1314580"]
[BlackFideId "5183189"]
[WhiteElo "2098"]
[BlackElo "2125"]

1. d4 {[%emt 00:07:13]} Nf6 {[%clk 01:33:33]} {[%emt 00:00:15]} 2. c4 {[%clk
01:41:22]} {[%emt 00:00:06]} e6 {[%clk 01:33:55]} {[%emt 00:00:07]} 3. Nc3
{[%clk 01:41:48]} {[%emt 00:00:05]} Bb4 {[%clk 01:33:58]} {[%emt 00:00:27]} 4.
Qc2 {[%clk 01:42:13]} {[%emt 00:00:05]} O-O {[%clk 01:34:18]} {[%emt 00:00:10]}
5. Nf3 {[%clk 01:42:34]} {[%emt 00:00:09]} c5 {[%clk 01:34:42]} {[%emt
00:00:06]} 6. dxc5 {[%clk 01:42:59]} {[%emt 00:00:05]} Na6 {[%clk 01:35:07]}
{[%emt 00:00:05]} 7. g3 {[%clk 01:43:25]} {[%emt 00:00:05]} Nxc5 {[%clk
01:35:33]} {[%emt 00:00:05]} 8. Bg2 {[%clk 01:43:51]} {[%emt 00:00:03]} Nce4
{[%clk 01:35:51]} {[%emt 00:00:11]} 9. O-O {[%clk 01:44:15]} {[%emt 00:00:07]}
Nxc3 {[%clk 01:36:17]} {[%emt 00:00:03]} 10. bxc3 {[%clk 01:44:39]} {[%emt
00:00:06]} Be7 {[%clk 01:36:44]} {[%emt 00:00:04]} 11. e4 {[%clk 01:44:56]}
{[%emt 00:00:13]} d6 {[%clk 01:37:08]} {[%emt 00:00:06]} 12. e5 {[%clk
01:44:45]} {[%emt 00:00:41]} dxe5 {[%clk 01:37:19]} {[%emt 00:00:19]} 13. Nxe5
{[%clk 01:45:07]} {[%emt 00:00:08]} Qc7 {[%clk 01:37:46]} {[%emt 00:00:03]} 14.
Re1 {[%clk 01:44:01]} {[%emt 00:01:36]} Bd6 {[%clk 01:35:59]} {[%emt 00:02:15]}
15. Qe2 {[%clk 01:43:32]} {[%emt 00:01:00]} Nd7 {[%clk 01:36:14]} {[%emt
00:00:15]} 16. Bf4 {[%clk 01:43:33]} {[%emt 00:00:30]} Nxe5 {[%clk 01:36:33]}
{[%emt 00:00:11]} 17. Bxe5 {[%clk 01:43:58]} {[%emt 00:00:06]} Bxe5 {[%clk
01:36:56]} {[%emt 00:00:06]} 18. Qxe5 {[%clk 01:44:19]} {[%emt 00:00:09]} Qxc4
{[%clk 01:37:23]} {[%emt 00:00:03]} 19. Re4 {[%clk 01:32:09]} {[%emt 00:12:39]}
Qd5 {[%clk 01:34:38]} {[%emt 00:03:15]} 20. Qxd5 {[%emt 00:00:14]} exd5 {[%clk
01:35:03]} 21. Rd4 {[%clk 01:32:41]} {[%emt 00:00:20]} Be6 {[%clk 01:34:51]}
{[%emt 00:00:41]} 22. Bxd5 {[%clk 01:33:01]} {[%emt 00:00:11]} Bxd5 {[%clk
01:35:16]} {[%emt 00:00:05]} 23. Rxd5 {[%clk 01:33:22]} {[%emt 00:00:09]} Rac8
{[%clk 01:35:13]} {[%emt 00:00:32]} 24. Rd7 {[%clk 01:33:35]} {[%emt 00:00:18]}
Rxc3 {[%clk 01:35:33]} {[%emt 00:00:10]} 25. Rxb7 {[%clk 01:34:00]} {[%emt
00:00:05]} Ra3 {[%clk 01:35:47]} {[%emt 00:00:16]} 1/2-1/2

[Event "Masters Tournament (MTO)"]
[Site "Biel, Switzerland"]
[Date "2026.07.23"]
[Round "10.22"]
[White "Xu, Chang(Cq)"]
[Black "Aryan, Mehta"]
[Result "0-1"]
[TimeControl "100+30+30sec/move"]
[WhiteTitle "-"]
[BlackTitle "-"]
[WhiteFideId "8641757"]
[BlackFideId "33329664"]
[WhiteElo "2125"]
[BlackElo "1979"]

1. e4 {[%clk 01:40:53]} {[%emt 00:00:07]} c5 {[%clk 01:40:53]} {[%emt
00:00:07]} 2. Nf3 {[%clk 01:41:16]} {[%emt 00:00:07]} d6 {[%clk 01:41:17]}
{[%emt 00:00:04]} 3. d4 {[%clk 01:41:40]} {[%emt 00:00:06]} cxd4 {[%clk
01:41:43]} {[%emt 00:00:05]} 4. Nxd4 {[%clk 01:42:04]} {[%emt 00:00:05]} Nf6
{[%clk 01:42:08]} {[%emt 00:00:05]} 5. Nc3 {[%clk 01:42:28]} {[%emt 00:00:06]}
a6 {[%clk 01:42:32]} {[%emt 00:00:06]} 6. Bg5 {[%clk 01:42:52]} {[%emt
00:00:05]} Nbd7 {[%clk 01:42:57]} {[%emt 00:00:06]} 7. Qe2 {[%clk 01:43:16]}
{[%emt 00:00:06]} h6 {[%clk 01:43:20]} {[%emt 00:00:07]} 8. Bh4 {[%clk
01:43:42]} {[%emt 00:00:04]} g6 {[%clk 01:43:44]} {[%emt 00:00:06]} 9. f4
{[%clk 01:44:07]} {[%emt 00:00:05]} e5 {[%clk 01:44:07]} {[%emt 00:00:06]} 10.
fxe5 {[%clk 01:44:32]} {[%emt 00:00:05]} dxe5 {[%clk 01:44:33]} {[%emt
00:00:04]} 11. O-O-O {[%clk 01:44:53]} {[%emt 00:00:09]} Qc7 {[%clk 01:44:58]}
{[%emt 00:00:05]} 12. Nb3 {[%clk 01:45:13]} {[%emt 00:00:10]} b5 {[%clk
01:45:01]} {[%emt 00:00:27]} 13. Qf3 {[%clk 01:44:31]} {[%emt 00:01:12]} Be7
{[%clk 01:40:24]} {[%emt 00:05:06]} 14. a3 {[%clk 01:40:52]} {[%emt 00:04:11]}
Bb7 {[%clk 01:35:49]} {[%emt 00:05:06]} 15. Bd3 {[%clk 01:36:06]} {[%emt
00:05:14]} O-O {[%clk 01:33:08]} {[%emt 00:03:12]} 16. Kb1 {[%clk 01:34:07]}
{[%emt 00:02:28]} Rab8 {[%clk 01:17:52]} {[%emt 00:15:47]} 17. Rhf1 {[%clk
01:28:41]} {[%emt 00:05:54]} Ba8 {[%clk 00:58:47]} {[%emt 00:19:38]} 18. Qh3
{[%clk 01:11:42]} {[%emt 00:17:27]} b4 {[%clk 00:48:14]} {[%emt 00:11:04]} 19.
axb4 {[%clk 01:11:10]} {[%emt 00:01:02]} Rxb4 {[%clk 00:47:48]} {[%emt
00:00:56]} 20. Be2 {[%clk 00:48:59]} {[%emt 00:22:41]} Bc6 {[%clk 00:41:31]}
{[%emt 00:06:47]} 21. Qe3 {[%clk 00:29:39]} {[%emt 00:19:50]} Kg7 {[%clk
00:37:41]} {[%emt 00:04:20]} 22. g4 {[%clk 00:16:46]} {[%emt 00:13:23]} a5
{[%clk 00:31:12]} {[%emt 00:07:00]} 23. g5 {[%clk 00:16:27]} {[%emt 00:00:49]}
hxg5 {[%clk 00:31:04]} {[%emt 00:00:38]} 24. Bxg5 {[%clk 00:16:51]} {[%emt
00:00:05]} Rfb8 {[%clk 00:31:20]} {[%emt 00:00:15]} 25. Qh3 {[%clk 00:14:52]}
{[%emt 00:02:29]} a4 {[%clk 00:28:06]} {[%emt 00:03:44]} 26. Rd3 {[%clk
00:11:05]} {[%emt 00:04:16]} Rh8 {[%clk 00:06:45]} {[%emt 00:21:51]} 27. Qf3
{[%clk 00:11:28]} {[%emt 00:00:07]} axb3 {[%clk 00:06:57]} {[%emt 00:00:18]} 28.
Rxd7 {[%clk 00:11:12]} {[%emt 00:00:47]} bxc2+ {[%clk 00:07:03]} {[%emt
00:00:24]} 29. Kc1 {[%clk 00:11:25]} {[%emt 00:00:17]} Qxd7 {[%clk 00:06:54]}
{[%emt 00:00:39]} 30. Bxf6+ {[%clk 00:11:47]} {[%emt 00:00:07]} Bxf6 {[%clk
00:07:00]} {[%emt 00:00:24]} 31. Qxf6+ {[%clk 00:12:10]} {[%emt 00:00:07]} Kh7
{[%clk 00:05:46]} {[%emt 00:01:40]} 32. Qxe5 {[%clk 00:08:44]} {[%emt
00:04:00]} Rd8 {[%clk 00:04:43]} {[%emt 00:01:30]} 33. Qf4 {[%clk 00:08:24]}
{[%emt 00:00:53]} Kg8 {[%clk 00:03:46]} {[%emt 00:01:27]} 34. Kxc2 {[%clk
00:08:06]} {[%emt 00:00:48]} Qb7 {[%clk 00:03:31]} {[%emt 00:00:45]} 35. Kc1
{[%clk 00:06:40]} {[%emt 00:01:56]} Bxe4 {[%clk 00:02:49]} {[%emt 00:01:12]} 36.
Ba6 {[%clk 00:06:33]} {[%emt 00:00:38]} Qxa6 {[%clk 00:02:10]} {[%emt
00:01:09]} 37. Qxf7+ {[%clk 00:06:34]} {[%emt 00:00:28]} Kh8 {[%clk 00:02:39]}
38. Qf6+ {[%clk 00:05:28]} {[%emt 00:01:36]} Qxf6 {[%clk 00:03:08]} {[%emt
00:00:02]} 39. Rxf6 {[%clk 00:05:51]} {[%emt 00:00:07]} Ra8 {[%clk 00:02:28]}
{[%emt 00:01:10]} 0-1

[Event "Masters Tournament (MTO)"]
[Site "Biel, Switzerland"]
[Date "2026.07.23"]
[Round "10.23"]
[White "Kwiatkowski, Jakub"]
[Black "Yang, Sung-Jui"]
[Result "1/2-1/2"]
[TimeControl "100+30+30sec/move"]
[WhiteTitle "-"]
[BlackTitle "-"]
[WhiteFideId "1348736"]
[BlackFideId "16301048"]
[WhiteElo "2107"]
[BlackElo "1935"]

1. e4 {[%clk 01:40:57]} {[%emt 00:00:02]} c5 {[%clk 01:39:22]} {[%emt
00:01:38]} 2. Nf3 {[%clk 01:41:14]} {[%emt 00:00:13]} d6 {[%clk 01:39:34]}
{[%emt 00:00:19]} 3. c3 {[%clk 01:25:55]} {[%emt 00:15:49]} Nf6 {[%clk
01:35:56]} {[%emt 00:04:08]} 4. h3 {[%clk 01:25:53]} {[%emt 00:00:31]} Nc6
{[%clk 01:35:32]} {[%emt 00:00:54]} 5. Bd3 {[%clk 01:25:47]} {[%emt 00:00:37]}
g6 {[%clk 01:34:57]} {[%emt 00:01:05]} 6. O-O {[%clk 01:25:53]} {[%emt
00:00:24]} Bg7 {[%clk 01:35:16]} {[%emt 00:00:10]} 7. Bc2 {[%clk 01:26:13]}
{[%emt 00:00:11]} O-O {[%clk 01:34:53]} {[%emt 00:00:53]} 8. Re1 {[%clk
01:25:28]} {[%emt 00:01:14]} Qc7 {[%clk 01:33:25]} {[%emt 00:01:58]} 9. d4
{[%clk 01:24:43]} {[%emt 00:01:15]} cxd4 {[%clk 01:01:53]} {[%emt 00:32:03]} 10.
cxd4 {[%clk 01:19:04]} {[%emt 00:06:09]} e5 {[%clk 00:56:19]} {[%emt 00:06:04]}
11. Nc3 {[%clk 01:07:43]} {[%emt 00:11:50]} a6 {[%clk 00:56:15]} {[%emt
00:00:35]} 12. Be3 {[%clk 01:04:23]} {[%emt 00:03:50]} exd4 {[%clk 00:42:30]}
{[%emt 00:14:15]} 13. Nxd4 {[%clk 01:04:12]} {[%emt 00:00:41]} Ne5 {[%clk
00:42:47]} {[%emt 00:00:13]} 14. Bb3 {[%clk 00:59:58]} {[%emt 00:04:43]} Nc4
{[%clk 00:42:38]} {[%emt 00:00:40]} 15. Bg5 {[%clk 01:00:01]} {[%emt 00:00:27]}
Nxb2 {[%clk 00:32:28]} {[%emt 00:10:40]} 16. Qc2 {[%clk 00:55:39]} {[%emt
00:04:51]} Nd7 {[%clk 00:32:48]} {[%emt 00:00:11]} 17. Be3 {[%clk 00:55:16]}
{[%emt 00:00:53]} Nc4 {[%clk 00:33:03]} {[%emt 00:00:15]} 18. Nd5 {[%clk
00:55:32]} {[%emt 00:00:13]} Nxe3 {[%clk 00:32:06]} {[%emt 00:01:28]} 19. Qxc7
{[%clk 00:55:50]} {[%emt 00:00:11]} Nxd5 {[%clk 00:32:24]} {[%emt 00:00:12]} 20.
Bxd5 {[%clk 00:56:03]} {[%emt 00:00:18]} Bxd4 {[%clk 00:32:49]} {[%emt
00:00:05]} 21. Rad1 {[%clk 00:55:19]} {[%emt 00:01:14]} Bc5 {[%clk 00:32:58]}
{[%emt 00:00:21]} 22. Qa5 {[%clk 00:52:32]} {[%emt 00:03:17]} Ne5 {[%clk
00:29:22]} {[%emt 00:04:06]} 23. Re2 {[%clk 00:42:25]} {[%emt 00:10:36]} Rb8
{[%clk 00:29:36]} {[%emt 00:00:17]} 24. Kh1 {[%clk 00:42:01]} {[%emt 00:00:54]}
b6 {[%clk 00:29:46]} {[%emt 00:00:20]} 25. Qc3 {[%clk 00:41:43]} {[%emt
00:00:47]} Bb7 {[%clk 00:29:42]} {[%emt 00:00:36]} 26. f4 {[%clk 00:40:46]}
{[%emt 00:01:26]} Nc6 {[%clk 00:30:03]} {[%emt 00:00:09]} 27. e5 {[%clk
00:40:22]} {[%emt 00:00:54]} dxe5 {[%clk 00:30:17]} {[%emt 00:00:16]} 28. fxe5
{[%clk 00:40:42]} {[%emt 00:00:10]} Nd8 {[%clk 00:30:26]} {[%emt 00:00:22]} 29.
Bxb7 {[%clk 00:35:06]} {[%emt 00:06:06]} Rxb7 {[%clk 00:30:41]} {[%emt
00:00:14]} 30. Qf3 {[%clk 00:30:35]} {[%emt 00:05:00]} Re7 {[%clk 00:30:54]}
{[%emt 00:00:18]} 31. Red2 {[%clk 00:30:19]} {[%emt 00:00:45]} Ne6 {[%clk
00:31:16]} {[%emt 00:00:09]} 32. Rd7 {[%clk 00:30:38]} {[%emt 00:00:11]} Rfe8
{[%clk 00:30:47]} {[%emt 00:00:59]} 33. Qc6 {[%clk 00:26:45]} {[%emt 00:04:22]}
a5 {[%clk 00:29:05]} {[%emt 00:02:13]} 34. Rxe7 {[%clk 00:23:35]} {[%emt
00:03:40]} Rxe7 {[%clk 00:29:27]} {[%emt 00:00:08]} 35. Rd7 {[%clk 00:23:34]}
{[%emt 00:00:30]} Rxd7 {[%clk 00:29:41]} {[%emt 00:00:17]} 36. Qxd7 {[%clk
00:23:54]} {[%emt 00:00:09]} h5 {[%clk 00:29:26]} {[%emt 00:00:46]} 37. g3
{[%clk 00:23:58]} {[%emt 00:00:26]} Kg7 {[%clk 00:29:20]} {[%emt 00:00:37]} 38.
Kg2 {[%clk 00:24:16]} {[%emt 00:00:11]} Bd4 {[%clk 00:29:08]} {[%emt 00:00:42]}
39. Qd6 {[%clk 00:23:52]} {[%emt 00:00:54]} Bc5 {[%clk 00:29:25]} {[%emt
00:00:13]} 40. Qc6 {[%clk 00:23:52]} {[%emt 00:00:29]} Be3 {[%clk 00:29:26]}
{[%emt 00:00:31]} 41. h4 {[%clk 00:23:49]} {[%emt 00:00:31]} Bc5 {[%clk
00:28:55]} {[%emt 00:01:02]} 42. Qe4 {[%clk 00:23:39]} {[%emt 00:00:40]} Kf8
{[%clk 00:28:37]} {[%emt 00:00:48]} 43. Kf1 {[%clk 00:18:17]} {[%emt 00:05:52]}
Bd4 {[%clk 00:28:52]} {[%emt 00:00:16]} 44. Ke1 {[%clk 00:17:16]} {[%emt
00:01:31]} Kg7 {[%clk 00:27:52]} {[%emt 00:01:29]} 45. Kd1 {[%clk 00:16:51]}
{[%emt 00:00:55]} Bf2 {[%clk 00:25:37]} {[%emt 00:02:44]} 46. Qf3 {[%clk
00:17:09]} {[%emt 00:00:13]} Bd4 {[%clk 00:25:50]} {[%emt 00:00:16]} 47. Qf6+
{[%clk 00:17:33]} {[%emt 00:00:06]} Kf8 {[%clk 00:25:41]} {[%emt 00:00:40]} 48.
Ke2 {[%clk 00:13:11]} {[%emt 00:04:52]} Bc5 {[%clk 00:25:34]} {[%emt 00:00:36]}
49. Kf1 {[%clk 00:13:28]} {[%emt 00:00:13]} Bd4 {[%clk 00:25:56]} {[%emt
00:00:09]} 50. Kg2 {[%clk 00:13:50]} {[%emt 00:00:08]} Bc5 {[%clk 00:26:05]}
{[%emt 00:00:21]} 51. Kh3 {[%clk 00:06:36]} {[%emt 00:07:43]} Bd4 {[%clk
00:26:26]} {[%emt 00:00:08]} 52. g4 {[%clk 00:05:59]} {[%emt 00:01:07]} hxg4+
{[%clk 00:26:50]} {[%emt 00:00:08]} 53. Kxg4 {[%clk 00:06:19]} {[%emt
00:00:09]} Ke8 {[%clk 00:26:43]} {[%emt 00:00:37]} 54. h5 {[%clk 00:06:03]}
{[%emt 00:00:45]} gxh5+ {[%clk 00:27:00]} {[%emt 00:00:13]} 55. Kxh5 {[%clk
00:06:18]} {[%emt 00:00:16]} Be3 {[%clk 00:27:07]} {[%emt 00:00:23]} 56. a4
{[%clk 00:05:58]} {[%emt 00:00:50]} Nf4+ {[%clk 00:26:49]} {[%emt 00:00:48]} 57.
Kg4 {[%clk 00:05:52]} {[%emt 00:00:37]} Ne6 {[%clk 00:27:01]} {[%emt 00:00:17]}
58. Kf3 {[%clk 00:05:12]} {[%emt 00:01:10]} Bd4 {[%clk 00:25:42]} {[%emt
00:01:49]} 59. Ke4 {[%clk 00:05:29]} {[%emt 00:00:12]} Bc5 {[%clk 00:25:57]}
{[%emt 00:00:15]} 60. Kd5 {[%clk 00:05:37]} {[%emt 00:00:22]} Nc7+ {[%clk
00:25:30]} {[%emt 00:00:58]} 61. Kc6 {[%clk 00:05:41]} {[%emt 00:00:25]} Ne6
{[%clk 00:25:38]} {[%emt 00:00:22]} 62. Kb7 {[%clk 00:05:18]} {[%emt 00:00:54]}
Nd8+ {[%clk 00:25:19]} {[%emt 00:00:48]} 63. Kc8 {[%clk 00:05:33]} {[%emt
00:00:15]} Ne6 {[%clk 00:25:33]} {[%emt 00:00:17]} 64. Qh8 {[%clk 00:03:55]}
{[%emt 00:02:08]} 1/2-1/2

[Event "Masters Tournament (MTO)"]
[Site "Biel, Switzerland"]
[Date "2026.07.23"]
[Round "10.24"]
[White "Schmidt, Florian Pascal"]
[Black "Ragavan, Samarth Rajesh"]
[Result "1/2-1/2"]
[TimeControl "100+30+30sec/move"]
[WhiteTitle "-"]
[BlackTitle "-"]
[WhiteFideId "16256840"]
[BlackFideId "39918106"]
[WhiteElo "2095"]
[BlackElo "2106"]

1. e4 {[%clk 01:40:59]} {[%emt 01:06:23]} c5 {[%clk 01:40:54]} {[%emt
00:00:07]} 2. Nf3 {[%clk 01:41:24]} {[%emt 00:00:03]} e6 {[%clk 01:41:21]}
{[%emt 00:00:04]} 3. d4 {[%clk 01:41:46]} {[%emt 00:00:07]} cxd4 {[%clk
01:41:48]} {[%emt 00:00:05]} 4. Nxd4 {[%clk 01:42:09]} {[%emt 00:00:06]} Nc6
{[%clk 01:42:14]} {[%emt 00:00:04]} 5. Nc3 {[%clk 01:42:20]} {[%emt 00:00:18]}
Qc7 {[%clk 01:42:40]} {[%emt 00:00:05]} 6. g3 {[%clk 01:42:29]} {[%emt
00:00:20]} Nf6 {[%clk 01:42:16]} {[%emt 00:00:55]} 7. Ndb5 {[%clk 01:41:38]}
{[%emt 00:01:21]} Qb8 {[%clk 01:42:37]} {[%emt 00:00:10]} 8. Bf4 {[%clk
01:41:55]} {[%emt 00:00:12]} e5 {[%clk 01:43:02]} {[%emt 00:00:06]} 9. Bg5
{[%clk 01:42:13]} {[%emt 00:00:10]} a6 {[%clk 01:42:18]} {[%emt 00:01:15]} 10.
Bxf6 {[%clk 01:42:06]} {[%emt 00:00:37]} gxf6 {[%clk 01:42:10]} {[%emt
00:00:37]} 11. Na3 {[%clk 01:42:27]} {[%emt 00:00:09]} Bxa3 {[%clk 01:24:08]}
{[%emt 00:18:33]} 12. bxa3 {[%clk 01:42:47]} {[%emt 00:00:10]} Ne7 {[%clk
01:23:42]} {[%emt 00:00:56]} 13. Nd5 {[%clk 01:17:13]} Nxd5 {[%clk 01:23:44]}
{[%emt 00:26:32]} 14. Qxd5 {[%clk 01:17:35]} Qc7 {[%clk 01:22:24]} {[%emt
00:01:58]} 15. Qd2 {[%clk 01:14:40]} d6 {[%clk 01:22:24]} 16. Rd1 {[%clk
01:14:40]} Bg4 {[%clk 01:22:24]} 17. Be2 {[%clk 01:14:40]} Bxe2 {[%clk
01:22:24]} 18. Kxe2 {[%clk 01:14:40]} Qc4+ {[%clk 01:13:49]} {[%emt 00:20:24]}
19. Qd3 {[%clk 01:10:03]} Rc8 {[%clk 01:13:49]} 20. Kf3 {[%clk 01:10:03]} Ra8
{[%clk 01:12:08]} 1/2-1/2